fUSD/lending_fUSD_20260108
["ID","MTS","AMOUNT","RATE_DAILY","PERIOD"]
[401078348,1767907832557,-8126.84307943,0.00011076,2]
[401078349,1767907832569,-598.40712866,0.00011076,2]
[401078350,1767907832578,-8531.1857,0.00011076,2]
[401078351,1767907832588,-174.89973452,0.00011076,2]
[401078352,1767907832597,-4478.91397776,0.00011099,2]
[401078353,1767907832607,-151.0,0.00011169,2]
[401078354,1767907832616,-151.0,0.00011169,2]
[401078355,1767907832625,-151.0,0.00011169,2]
[401078356,1767907832634,-151.0,0.00011169,2]
[401078357,1767907832644,-151.0,0.00011169,2]
[401078358,1767907832653,-151.0,0.00011169,2]
[401078359,1767907832663,-151.0,0.00011169,2]
[401078360,1767907832673,-151.0,0.00011169,2]
[401078361,1767907832683,-151.0,0.00011169,2]
[401078362,1767907832694,-151.0,0.00011169,2]
[401078363,1767907832705,-151.0,0.00011169,2]
[401078364,1767907832715,-254.01296283,0.00011169,2]
[401078365,1767907832725,-1000.0,0.00011276,2]
[401078366,1767907832735,-173.71,0.00011337,2]
[401078367,1767907832745,-312.24519535,0.00011826,2]
[401078368,1767907832755,-4478.91397772,0.00011834,2]
[401078369,1767907832764,-150.0,0.00011852,2]
[401078370,1767907832774,-150.0,0.00011852,2]
[401078371,1767907832784,-150.0,0.00011852,2]
[401078372,1767907832794,-190.19225777,0.00011907,2]
[401078373,1767907832803,-150.0,0.00011907,2]
[401078374,1767907832812,-150.0,0.00011907,2]
[401078375,1767907832821,-500.0,0.00011907,2]
[401078376,1767907832831,-478.0,0.00011907,2]
[401078377,1767907832840,-500.0,0.00011907,2]
[401078378,1767907832849,-250.0,0.00011962,2]
[401078379,1767907832858,-150.0,0.00011962,2]
[401078380,1767907832867,-500.0,0.00011962,2]
[401078381,1767907832877,-478.0,0.00011962,2]
[401078382,1767907832886,-500.0,0.00011962,2]
[401078383,1767907832895,-500.0,0.00012017,2]
[401078384,1767907832904,-478.0,0.00012017,2]
[401078385,1767907832917,-500.0,0.00012017,2]
[401078386,1767907832927,-500.0,0.00012071,2]
[401078387,1767907832936,-478.0,0.00012071,2]
[401078388,1767907832945,-500.0,0.00012071,2]
[401078389,1767907832954,-195.0,0.00012073,2]
[401078390,1767907832963,-300.0,0.00012073,2]
[401078391,1767907832972,-300.0,0.0001212,2]
[401078392,1767907832982,-255.0,0.00012126,2]
[401078393,1767907832991,-500.0,0.00012126,2]
[401078394,1767907833000,-478.0,0.00012126,2]
[401078395,1767907833010,-500.0,0.00012126,2]
[401078396,1767907833022,-768.01,0.00012143,2]
[401078397,1767907833041,-300.0,0.0001218,2]
[401078398,1767907833051,-500.0,0.00012181,2]
[401078399,1767907833060,-478.0,0.00012181,2]
[401078400,1767907833069,-500.0,0.00012181,2]
[401078401,1767907833079,-1680.0,0.00012181,2]
[401078402,1767907833089,-300.0,0.00012181,2]
[401078403,1767907833099,-252.34656851,0.00012182,2]
[401078404,1767907833108,-195.0,0.00012182,2]
[401078405,1767907833117,-500.0,0.00012236,2]
[401078406,1767907833126,-162.45863703,0.00012236,2]
[401078407,1767907833220,-315.54136297,0.00012236,2]
[401078408,1767907833229,-310.58203018,0.00012236,2]
[401078409,1767907833241,-234.31555337,0.00012291,2]
[401078410,1767907833252,-55.53628999,0.00012291,2]
[401078411,1767907833262,-309.18744209,0.00012291,2]
[401078412,1767907833280,-168.81255791,0.00012291,2]
[401078413,1767907833290,-119.28944666,0.00012329,2]
[401078414,1767907833301,-47.37055334,0.00012329,2]
[401078415,1767907833310,-478.0,0.00012345,2]
[401078416,1767907833319,-478.0,0.000124,2]
[401078417,1767907833329,-166.66,0.00012452,2]
[401078418,1767907833338,-478.0,0.00012455,2]
[401078419,1767907833347,-478.0,0.0001251,2]
[401078420,1767907833356,-20561.13040008,0.00012519,2]
[401078421,1767907833366,-478.0,0.00012565,2]
[401078422,1767907833376,-166.66,0.00012575,2]
[401078423,1767907833385,-4478.91397772,0.00012592,2]
[401078424,1767907833395,-150.0,0.00012619,2]
[401078425,1767907833404,-500.0,0.00012619,2]
[401078426,1767907833414,-153.65010095,0.00012619,2]
[401078427,1767907833423,-478.0,0.00012619,2]
[401078428,1767907833432,-150.0,0.00012674,2]
[401078429,1767907833443,-500.0,0.00012674,2]
[401078430,1767907833455,-150.0,0.00012674,2]
[401078431,1767907833464,-500.0,0.00012674,2]
[401078432,1767907833474,-1500.0,0.00012674,2]
[401078433,1767907833483,-618.73,0.00012674,2]
[401078434,1767907833492,-3561.47,0.00012674,2]
[401078435,1767907833501,-478.0,0.00012674,2]
[401078436,1767907833511,-166.66,0.00012699,2]
[401078437,1767907833520,-150.0,0.00012729,2]
[401078438,1767907833529,-500.0,0.00012729,2]
[401078439,1767907833538,-478.0,0.00012729,2]
[401078440,1767907833547,-150.0,0.00012783,2]
[401078441,1767907833557,-500.0,0.00012783,2]
[401078442,1767907833566,-478.0,0.00012784,2]
[401078443,1767907833576,-166.66,0.00012822,2]
[401078444,1767907833585,-150.0,0.00012838,2]
[401078445,1767907833594,-500.0,0.00012838,2]
[401078446,1767907833604,-478.0,0.00012839,2]
[401078447,1767907833614,-999.57459217,0.00012893,2]
[401078448,1767907833626,-2279.85668093,0.00012893,2]
[401078449,1767907833638,-4452.66369481,0.00012893,2]
[401078450,1767907833650,-552.02375502,0.00012893,2]
[401078487,1767907838331,-500.0,0.00011564,2]
[401078489,1767907838340,-215.60999952,0.00012893,2]
[401078491,1767907838351,-1500.26127755,0.00012893,2]
[401078493,1767907838360,-38.40192329,0.00012893,2]
[401078497,1767907838392,-1285.24910324,0.00012893,2]
[401078500,1767907838404,-1783.62211508,0.00012893,2]
[401078507,1767907838460,-10242.15576679,0.00012893,2]
[401078667,1767907840080,-12357.4410916,0.00012893,2]
[401078669,1767907840090,-3614.02,0.00012893,2]
[401078671,1767907840099,-9999.99,0.00012893,2]
[401078673,1767907840108,-9999.99,0.00012893,2]
[401078675,1767907840119,-150.99,0.00012893,2]
[401078677,1767907840128,-250.0,0.00012893,2]
[401078679,1767907840137,-295.72412489,0.00012893,2]
[401078681,1767907840146,-478.0,0.00012893,2]
[401078683,1767907840156,-166.66,0.00012945,2]
[401078685,1767907840165,-2660.29,0.00012945,2]
[401078687,1767907840174,-478.0,0.00012948,2]
[401078689,1767907840183,-478.0,0.00013003,2]
[401078691,1767907840193,-478.0,0.00013058,2]
[401078693,1767907840202,-478.0,0.00013112,2]
[401078695,1767907840211,-20561.13039999,0.00013117,2]
[401078697,1767907840220,-478.75099502,0.00013167,2]
[401078699,1767907840230,-173.71,0.00013226,2]
[401078701,1767907840239,-433.0,0.00013277,2]
[401078703,1767907840248,-174.89973452,0.00013351,2]
[401078705,1767907840258,-4478.91397772,0.00013351,2]
[401078707,1767907840267,-2351.0,0.00013399,2]
[401078709,1767907840277,-500.0,0.00013698,2]
[401078711,1767907840287,-500.0,0.00013698,2]
[401078713,1767907840296,-500.0,0.00013698,2]
[401078715,1767907840306,-500.0,0.00013698,2]
[401078717,1767907840315,-500.0,0.00013698,2]
[401078719,1767907840324,-500.0,0.00013698,2]
[401078721,1767907840334,-500.0,0.00013698,2]
[401078723,1767907840344,-564.92009029,0.00013698,2]
[401078725,1767907840353,-500.0,0.00013698,2]
[401078727,1767907840362,-500.0,0.00013698,2]
[401078729,1767907840372,-500.0,0.00013698,2]
[401078731,1767907840381,-500.0,0.00013698,2]
[401078733,1767907840390,-500.0,0.00013698,2]
[401078735,1767907840400,-500.0,0.00013698,2]
[401078738,1767907840414,-649.16,0.00013698,2]
[401078740,1767907840423,-649.16,0.00013698,2]
[401078742,1767907840432,-649.16,0.00013698,2]
[401078744,1767907840442,-649.16,0.00013698,2]
[401078746,1767907840451,-500.0,0.00013698,2]
[401078748,1767907840461,-500.0,0.00013698,2]
[401078750,1767907840470,-500.0,0.00013698,2]
[401078752,1767907840479,-500.0,0.00013698,2]
[401078754,1767907840489,-500.0,0.00013698,2]
[401078756,1767907840498,-500.0,0.00013698,2]
[401078758,1767907840508,-386.45682453,0.00013698,2]
[401078760,1767907840516,-855.65,0.00013698,2]
[401078762,1767907840526,-855.65,0.00013698,2]
[401078765,1767907840538,-855.65,0.00013698,2]
[401078767,1767907840547,-855.65,0.00013698,2]
[401078769,1767907840556,-200.0,0.00013699,2]
[401078771,1767907840566,-1095.68,0.00013699,2]
[401078773,1767907840575,-20561.13039999,0.00013715,2]
[401078775,1767907840585,-11106.26,0.00013953,2]
[401078777,1767907840594,-998.13686081,0.00014,2]
[401078779,1767907840603,-855.65,0.00014108,2]
[401078781,1767907840612,-4478.91397772,0.00014109,2]
[401078783,1767907840621,-160.53,0.00014171,2]
[401078785,1767907840630,-500.0,0.0001422,2]
[401078787,1767907840639,-618.73,0.00014258,2]
[401078789,1767907840648,-20561.13039999,0.00014313,2]
[401078791,1767907840658,-1000.0,0.00014403,2]
[401078793,1767907840667,-1000.0,0.00014465,2]
[401078795,1767907840676,-736.0,0.0001454,2]
[401078797,1767907840685,-250.0,0.00014559,2]
[401078799,1767907840694,-1000.0,0.00014598,2]
[401078801,1767907840703,-3292.0,0.00014739,2]
[401078803,1767907840713,-500.0,0.00014763,2]
[401078805,1767907840722,-500.0,0.00014763,2]
[401078807,1767907840732,-500.0,0.00014763,2]
[401078809,1767907840741,-500.0,0.00014763,2]
[401078811,1767907840750,-500.0,0.00014763,2]
[401078813,1767907840760,-500.0,0.00014763,2]
[401078815,1767907840769,-500.0,0.00014763,2]
[401078817,1767907840778,-500.0,0.00014763,2]
[401078819,1767907840788,-500.0,0.00014866,2]
[401078821,1767907840797,-4478.91397772,0.00014867,2]
[401078823,1767907840806,-1000.0,0.00014884,2]
[401078825,1767907840816,-1000.0,0.000149,2]
[401078827,1767907840825,-20561.13039999,0.00014911,2]
[401078829,1767907840834,-5941.81705286,0.00015,2]
[401078831,1767907840843,-173.71,0.00015116,2]
[401078833,1767907840853,-400.0,0.000153,6]
[401078835,1767907840862,-731.44,0.000153,5]
[401078837,1767907840871,-697.3,0.000153,3]
[401078839,1767907840880,-1000.0,0.0001531,2]
[401078841,1767907840889,-1000.0,0.0001531,2]
[401078843,1767907840898,-1000.0,0.0001531,2]
[401078845,1767907840908,-1000.0,0.0001531,2]
[401078847,1767907840920,-1000.0,0.0001531,2]
[401078850,1767907840931,-1000.0,0.0001531,2]
[401078852,1767907840940,-1000.0,0.0001531,2]
[401078854,1767907840950,-1000.0,0.0001531,2]
[401078856,1767907840959,-507.02410886,0.000154,2]
[401078858,1767907840968,-1000.0,0.00015441,2]
[401078860,1767907840978,-1000.0,0.00015464,2]
[401078862,1767907840987,-1000.0,0.00015468,2]
[401078863,1767907840996,-156.94235947,0.00015469,2]
[401078866,1767907841005,-156.94235947,0.00015469,2]
[401078868,1767907841015,-1000.0,0.00015483,2]
[401078869,1767907841023,-20561.13039999,0.00015508,2]
[401078871,1767907841033,-1000.0,0.0001551,2]
[401078874,1767907841042,-1000.0,0.00015569,2]
[401078876,1767907841051,-174.89973452,0.00015625,2]
[401078878,1767907841060,-4478.91397772,0.00015625,2]
[401078879,1767907841070,-1000.0,0.00015687,2]
[401078881,1767907841079,-1000.0,0.00015717,2]
[401078884,1767907841088,-1000.0,0.00015753,2]
[401078885,1767907841097,-1000.0,0.00015797,2]
[401078887,1767907841106,-1000.0,0.00015833,2]
[401078889,1767907841116,-618.73,0.00015842,2]
[401078892,1767907841125,-1000.0,0.00015846,2]
[401078894,1767907841135,-1500.0,0.00015858,2]
[401078895,1767907841144,-1000.0,0.00015858,2]
[401078898,1767907841155,-1520.5636209,0.00015858,2]
[401078899,1767907841165,-1500.0,0.00015858,2]
[401078902,1767907841175,-1500.0,0.00015858,2]
[401078904,1767907841184,-1000.0,0.00015858,2]
[401078906,1767907841196,-1000.0,0.00015858,2]
[401078908,1767907841206,-1000.0,0.00015858,2]
[401078910,1767907841215,-1000.0,0.00015918,2]
[401078912,1767907841225,-1000.0,0.00015918,2]
[401078914,1767907841234,-1000.0,0.0001592,2]
[401078916,1767907841243,-1252.0,0.00015924,2]
[401078918,1767907841252,-1000.0,0.00015942,2]
[401078919,1767907841262,-1000.0,0.00015993,2]
[401078921,1767907841271,-11716.16929184,0.00016,2]
[401078923,1767907841280,-250.031061,0.00016,2]
[401078925,1767907841290,-187.7,0.00016006,2]
[401078927,1767907841299,-80755.69031789,0.000161,2]
[401078929,1767907841308,-20561.13039999,0.00016106,2]
[401078932,1767907841318,-9999.99,0.00016116,2]
[401078934,1767907841328,-5000.0000257,0.000162,5]
[401078936,1767907841337,-4609.0,0.00016213,2]
[401078938,1767907841347,-1000.0,0.00016257,2]
[401078940,1767907841356,-1000.0,0.00016277,2]
[401078942,1767907841365,-156.94235944,0.00016279,2]
[401078944,1767907841374,-200.0,0.0001634,2]
[401078946,1767907841383,-1000.0,0.00016352,2]
[401078948,1767907841392,-157.72323008,0.00016369,2]
[401078949,1767907841402,-1000.0,0.00016379,2]
[401078951,1767907841413,-4478.91397772,0.00016384,2]
[401078953,1767907841422,-162.0,0.000164,2]
[401078956,1767907841432,-162.0,0.000164,2]
[401078958,1767907841441,-833.0,0.000164,2]
[401078960,1767907841450,-833.0,0.000164,2]
[401078962,1767907841459,-833.0,0.000164,2]
[401078964,1767907841469,-162.0,0.000164,2]
[401078966,1767907841478,-162.0,0.000164,2]
[401078968,1767907841487,-833.0,0.000164,2]
[401078969,1767907841496,-162.0,0.000164,2]
[401078971,1767907841506,-163.0,0.000164,2]
[401078973,1767907841515,-1693.73266833,0.00016406,2]
[401078975,1767907841524,-2000.0,0.00016406,2]
[401078977,1767907841534,-2000.0,0.00016406,2]
[401078979,1767907841543,-1000.0,0.00016408,2]
[401078981,1767907841553,-1000.0,0.00016425,2]
[401078983,1767907841562,-500.0,0.00016437,2]
[401078986,1767907841571,-649.16,0.00016437,2]
[401078988,1767907841580,-500.0,0.00016437,2]
[401078990,1767907841590,-4391.8,0.00016438,2]
[401078992,1767907841599,-800.0,0.00016438,2]
[401078994,1767907841608,-15943.5869889,0.0001644,2]
[401078996,1767907841617,-1000.0,0.00016467,2]
[401078998,1767907841627,-1000.0,0.00016515,2]
[401078999,1767907841637,-1000.0,0.00016545,2]
[401079001,1767907841648,-1000.0,0.00016563,2]
[401079003,1767907841658,-1000.0,0.00016608,2]
[401079006,1767907841667,-252.35,0.00016634,2]
[401079007,1767907841676,-167.15,0.00016635,2]
[401079010,1767907841685,-1000.0,0.00016662,2]
[401079012,1767907841694,-1000.0,0.00016696,2]
[401079014,1767907841703,-20561.13039999,0.00016704,2]
[401079016,1767907841712,-4391.8,0.00016712,2]
[401079018,1767907841722,-833.0,0.0001672,2]
[401079020,1767907841731,-162.0,0.0001672,2]
[401079022,1767907841740,-162.0,0.0001672,2]
[401079024,1767907841749,-162.0,0.0001672,2]
[401079026,1767907841759,-162.0,0.0001672,2]
[401079028,1767907841768,-833.0,0.0001672,2]
[401079030,1767907841777,-162.0,0.0001672,2]
[401079031,1767907841786,-162.0,0.0001672,2]
[401079034,1767907841796,-833.0,0.0001672,2]
[401079036,1767907841805,-162.0,0.0001672,2]
[401079071,1767907841815,-162.0,0.0001672,2]
[401079073,1767907842139,-162.0,0.0001672,2]
[401079075,1767907842148,-833.0,0.0001672,2]
[401079077,1767907842159,-833.0,0.0001672,2]
[401079079,1767907842168,-833.0,0.0001672,2]
[401079081,1767907842177,-1000.0,0.00016741,2]
[401079083,1767907842186,-1000.0,0.00016742,2]
[401079085,1767907842195,-1000.0,0.000168,2]
[401079087,1767907842204,-1100.0,0.00016808,7]
[401079089,1767907842213,-3000.0,0.00016808,7]
[401079091,1767907842222,-1000.0,0.00016809,2]
[401079093,1767907842231,-157.03274317,0.00016821,2]
[401079095,1767907842240,-171.05172936,0.00016821,2]
[401079097,1767907842249,-1000.0,0.00016832,2]
[401079099,1767907842258,-469.50438451,0.00016857,2]
[401079101,1767907842267,-1000.0,0.00016872,2]
[401079103,1767907842276,-252.00661998,0.00016889,2]
[401079105,1767907842285,-187.7,0.00016897,2]
[401079107,1767907842295,-272.2442752,0.000169,2]
[401079109,1767907842303,-1000.0,0.00016942,2]
[401079111,1767907842312,-252.00661996,0.00016944,2]
[401079113,1767907842322,-157.72323008,0.00016954,2]
[401079115,1767907842331,-1699.80942896,0.00016954,2]
[401079117,1767907842340,-2500.0,0.00016954,2]
[401079119,1767907842350,-1000.0,0.00016969,2]
[401079121,1767907842359,-893.22555293,0.00016976,2]
[401079123,1767907842368,-1000.0,0.0001698,2]
[401079125,1767907842377,-151.0,0.00016983,2]
[401079127,1767907842386,-1000.0,0.00016985,2]
[401079129,1767907842396,-855.65,0.00016985,2]
[401079131,1767907842405,-649.16,0.00016986,2]
[401079133,1767907842414,-649.16,0.00016986,2]
[401079135,1767907842423,-649.16,0.00016986,2]
[401079137,1767907842433,-577.6208976,0.00016986,2]
[401079139,1767907842442,-4391.8,0.00016986,2]
[401079141,1767907842451,-855.65,0.00016986,2]
[401079143,1767907842460,-855.65,0.00016986,2]
[401079145,1767907842469,-659602.41,0.00016986,2]
[401079147,1767907842479,-1998.22747762,0.00016989,2]
[401079149,1767907842488,-252.00661996,0.00016999,2]
[401079151,1767907842498,-250.0,0.00017,2]
[401079153,1767907842508,-160.0,0.00017,2]
[401079155,1767907842517,-500.0,0.00017,2]
[401079156,1767907842526,-4000.0,0.00017,2]
[401079159,1767907842535,-173.71,0.00017005,2]
[401079161,1767907842544,-1000.0,0.00017029,2]
[401079164,1767907842554,-1000.0,0.0001703,2]
[401079165,1767907842563,-1000.0,0.00017039,2]
[401079167,1767907842573,-833.0,0.0001704,2]
[401079170,1767907842582,-162.0,0.0001704,2]
[401079172,1767907842591,-833.0,0.0001704,2]
[401079173,1767907842600,-162.0,0.0001704,2]
[401079176,1767907842610,-552.0,0.0001704,2]
[401079178,1767907842619,-162.0,0.0001704,2]
[401079180,1767907842627,-162.0,0.0001704,2]
[401079182,1767907842636,-162.0,0.0001704,2]
[401079184,1767907842646,-833.0,0.0001704,2]
[401079186,1767907842655,-833.0,0.0001704,2]
[401079188,1767907842664,-833.0,0.0001704,2]
[401079190,1767907842673,-1000.0,0.00017071,2]
[401079192,1767907842682,-1000.0,0.00017072,2]
[401079194,1767907842691,-1000.0,0.0001708,2]
[401079196,1767907842700,-500.0,0.00017098,2]
[401079198,1767907842709,-500.0,0.00017098,2]
[401079200,1767907842719,-855.65,0.00017098,2]
[401079202,1767907842728,-695.39793187,0.00017099,2]
[401079204,1767907842738,-9211.34798985,0.00017099,2]
[401079206,1767907842748,-151.0,0.00017099,2]
[401079208,1767907842756,-500.0,0.00017099,2]
[401079210,1767907842766,-1500.0,0.00017099,2]
[401079212,1767907842775,-500.0,0.00017099,2]
[401079215,1767907842784,-500.0,0.00017099,2]
[401079216,1767907842794,-1500.0,0.00017099,2]
[401079219,1767907842803,-500.0,0.00017099,2]
[401079221,1767907842812,-1500.0,0.00017099,2]
[401079222,1767907842822,-500.0,0.00017099,2]
[401079224,1767907842831,-500.0,0.00017099,2]
[401079227,1767907842840,-1500.0,0.00017099,2]
[401079229,1767907842850,-500.0,0.00017099,2]
[401079231,1767907842859,-500.0,0.00017099,2]
[401079233,1767907842869,-1500.0,0.00017099,2]
[401079235,1767907842878,-500.0,0.00017099,2]
[401079237,1767907842888,-500.0,0.00017099,2]
[401079239,1767907842898,-1500.0,0.00017099,2]
[401079240,1767907842908,-500.0,0.00017099,2]
[401079243,1767907842919,-500.0,0.00017099,2]
[401079244,1767907842928,-1500.0,0.00017099,2]
[401079247,1767907842937,-500.0,0.00017099,2]
[401079249,1767907842946,-578.20924308,0.00017099,2]
[401079251,1767907842955,-151.0,0.00017099,2]
[401079253,1767907842965,-500.0,0.00017099,2]
[401079255,1767907842974,-1500.0,0.00017099,2]
[401079257,1767907842983,-500.0,0.00017099,2]
[401079259,1767907842992,-151.0,0.00017099,2]
[401079261,1767907843001,-500.0,0.00017099,2]
[401079262,1767907843010,-1500.0,0.00017099,2]
[401079265,1767907843021,-500.0,0.00017099,2]
[401079267,1767907843030,-162.7023203,0.00017099,2]
[401079268,1767907843039,-500.0,0.00017099,2]
[401079270,1767907843048,-1500.0,0.00017099,2]
[401079272,1767907843058,-500.0,0.00017099,2]
[401079275,1767907843067,-500.0,0.00017099,2]
[401079276,1767907843076,-1500.0,0.00017099,2]
[401079278,1767907843085,-500.0,0.00017099,2]
[401079281,1767907843095,-1500.0,0.00017099,2]
[401079282,1767907843104,-500.0,0.00017099,2]
[401079283,1767907843113,-500.0,0.00017099,2]
[401079285,1767907843123,-500.0,0.00017099,2]
[401079286,1767907843132,-500.0,0.00017099,2]
[401079288,1767907843141,-500.0,0.00017099,2]
[401079289,1767907843151,-500.0,0.00017099,2]
[401079291,1767907843160,-500.0,0.00017099,2]
[401079293,1767907843170,-500.0,0.00017099,2]
[401079295,1767907843179,-500.0,0.00017099,2]
[401079297,1767907843189,-553.64373807,0.00017099,2]
[401079298,1767907843198,-500.0,0.00017099,2]
[401079299,1767907843208,-500.0,0.00017099,2]
[401079300,1767907843217,-500.0,0.00017099,2]
[401079301,1767907843227,-500.0,0.00017099,2]
[401079302,1767907843236,-500.0,0.00017099,2]
[401079303,1767907843245,-250.0,0.00017099,2]
[401079304,1767907843255,-500.0,0.00017099,2]
[401079305,1767907843264,-500.0,0.00017099,2]
[401079306,1767907843274,-250.0,0.00017099,2]
[401079307,1767907843283,-500.0,0.00017099,2]
[401079308,1767907843292,-500.0,0.00017099,2]
[401079309,1767907843302,-500.0,0.00017099,2]
[401079310,1767907843311,-151.0,0.00017099,2]
[401079311,1767907843321,-275.30162004,0.00017099,2]
[401079312,1767907843330,-250.0,0.00017099,2]
[401079313,1767907843339,-500.0,0.00017099,2]
[401079314,1767907843348,-250.0,0.00017099,2]
[401079316,1767907843358,-250.0,0.00017099,2]
[401079317,1767907843368,-394.3952879,0.00017099,2]
[401079318,1767907843377,-500.0,0.00017099,2]
[401079319,1767907843387,-500.0,0.00017099,2]
[401079320,1767907843396,-322.6107,0.00017099,2]
[401079321,1767907843405,-500.0,0.00017099,2]
[401079322,1767907843416,-500.0,0.00017099,2]
[401079323,1767907843426,-620.0,0.00017099,2]
[401079324,1767907843435,-500.0,0.00017099,2]
[401079325,1767907843444,-500.0,0.00017099,2]
[401079326,1767907843454,-260.34840278,0.00017099,2]
[401079327,1767907843463,-2000.0,0.00017099,2]
[401079328,1767907843472,-2000.0,0.00017099,2]
[401079329,1767907843482,-2000.0,0.00017099,2]
[401079330,1767907843491,-2000.0,0.00017099,2]
[401079331,1767907843501,-2000.0,0.00017099,2]
[401079332,1767907843511,-2000.0,0.00017099,2]
[401079333,1767907843521,-2000.0,0.00017099,2]
[401079334,1767907843531,-2000.0,0.00017099,2]
[401079335,1767907843541,-2000.0,0.00017099,2]
[401079336,1767907843551,-2000.0,0.00017099,2]
[401079337,1767907843561,-2000.0,0.00017099,2]
[401079338,1767907843570,-2000.0,0.00017099,2]
[401079339,1767907843580,-201.93286099,0.00017099,2]
[401079340,1767907843589,-500.0,0.00017099,2]
[401079341,1767907843598,-500.0,0.00017099,2]
[401079342,1767907843608,-500.0,0.00017099,2]
[401079343,1767907843618,-500.0,0.00017099,2]
[401079344,1767907843628,-500.0,0.00017099,2]
[401079345,1767907843638,-500.0,0.00017099,2]
[401079346,1767907843647,-500.0,0.00017099,2]
[401079347,1767907843656,-500.0,0.00017099,2]
[401079348,1767907843666,-500.0,0.00017099,2]
[401079349,1767907843675,-500.0,0.00017099,2]
[401079350,1767907843685,-500.0,0.00017099,2]
[401079351,1767907843694,-500.0,0.00017099,2]
[401079352,1767907843703,-359.76179104,0.00017099,2]
[401079353,1767907843712,-20452.74518303,0.000171,2]
[401079354,1767907843721,-1000.0,0.00017102,2]
[401079355,1767907843731,-150.0,0.0001711,2]
[401079356,1767907843741,-213.0,0.0001711,2]
[401079357,1767907843749,-302.46,0.0001711,2]
[401079358,1767907843758,-350.94134188,0.0001711,2]
[401079359,1767907843767,-1000.0,0.00017112,2]
[401079360,1767907843776,-168.52,0.00017123,2]
[401079361,1767907843785,-1000.0,0.0001714,2]
[401079362,1767907843794,-4478.91397772,0.00017142,2]
[401079363,1767907843803,-1316.20759869,0.00017154,2]
[401079364,1767907843812,-1000.0,0.0001716,2]
[401079365,1767907843821,-1364.91486209,0.00017161,2]
[401079366,1767907843830,-1000.0,0.00017176,2]
[401079367,1767907843839,-1000.0,0.00017177,2]
[401079368,1767907843848,-1000.0,0.00017178,2]
[401079369,1767907843858,-171.35,0.00017178,2]
[401079370,1767907843868,-150.0,0.00017239,2]
[401079371,1767907843877,-1000.0,0.00017259,2]
[401079372,1767907843886,-4391.8,0.0001726,2]
[401079373,1767907843895,-1000.0,0.00017286,2]
[401079374,1767907843904,-4819.0,0.00017297,2]
[401079375,1767907843915,-20561.13039999,0.00017302,2]
[401079376,1767907843925,-1000.0,0.00017309,2]
[401079377,1767907843935,-1000.0,0.00017317,2]
[401079378,1767907843944,-1000.0,0.00017318,2]
[401079379,1767907843953,-833.0,0.0001736,2]
[401079380,1767907843962,-833.0,0.0001736,2]
[401079381,1767907843971,-162.0,0.0001736,2]
[401079382,1767907843980,-833.0,0.0001736,2]
[401079383,1767907843992,-833.0,0.0001736,2]
[401079384,1767907844001,-162.0,0.0001736,2]
[401079385,1767907844010,-833.0,0.0001736,2]
[401079386,1767907844019,-833.0,0.0001736,2]
[401079387,1767907844029,-1000.0,0.0001736,2]
[401079388,1767907844038,-820.0305175,0.00017371,2]
[401079389,1767907844047,-1000.0,0.00017374,2]